bitfinex/quotes_ETHUSD_20241004
["timestamp","ask_amount","ask_price","bid_price","bid_amount"]
[1728076857334,4.90747,2434.3,2433.9,4.10849]
[1728076857535,0.12190579,2434.2,2433.9,4.10849]
[1728076857886,4.90747,2434.3,2433.9,4.10849]
[1728076858046,0.12186012,2434.1,2433.9,4.10849]
[1728076858236,4.90747,2434.3,2433.9,4.10849]
[1728076858435,0.12181697,2434.0,2433.9,4.10849]
[1728076858637,4.90747,2434.3,2433.9,4.5780082]
[1728076858833,0.12181697,2434.0,2433.9,4.10849]
[1728076859034,4.90747,2434.3,2433.9,4.10849]
[1728076859248,0.12181697,2434.0,2433.9,4.10849]
[1728076859474,4.90747,2434.3,2433.9,4.10849]
[1728076859680,0.12175885,2434.0,2433.9,4.10849]
[1728076859989,0.1217741,2434.0,2433.9,4.10849]
[1728076860291,4.90747,2434.3,2433.9,4.10849]
[1728076860446,0.12178839,2434.0,2433.9,4.10849]
[1728076860643,4.90747,2434.3,2433.9,4.10849]
[1728076860848,0.12180268,2434.0,2433.9,4.10849]
[1728076861362,4.90747,2434.3,2433.9,4.10849]
[1728076861576,0.12193437,2434.2,2433.9,4.10849]
[1728076861776,4.90747,2434.3,2433.9,4.10849]
[1728076861974,0.12193437,2434.2,2433.9,4.10849]
[1728076862171,4.90747,2434.3,2433.9,4.10849]
[1728076862378,0.12187752,2434.2,2433.9,4.10849]
[1728076862688,4.90747,2434.3,2433.9,4.10849]
[1728076862919,0.12181882,2434.1,2433.9,4.10849]
[1728076863089,4.90747,2434.3,2433.9,4.10849]
[1728076863254,0.1217741,2434.0,2433.9,4.10849]
[1728076863449,4.90747,2434.3,2433.8,4.89744]
[1728076863677,4.90747,2434.3,2433.9,4.10854]
[1728076863678,0.12180268,2434.0,2433.9,4.10854]
[1728076863862,4.90747,2434.3,2433.9,5.23528086]
[1728076864071,0.12180268,2434.0,2433.9,4.10854]
[1728076864389,0.12181697,2434.0,2433.9,4.10854]
[1728076864685,4.90747,2434.3,2433.9,4.10854]
[1728076865295,0.1219331,2434.2,2433.9,4.10854]
[1728076865798,4.90747,2434.3,2433.9,4.10854]
[1728076865799,0.12181756,2434.1,2433.9,4.10854]
[1728076865994,4.90747,2434.3,2433.9,5.23528086]
[1728076866170,0.1217741,2434.0,2433.9,4.10854]
[1728076866366,4.90747,2434.3,2433.9,4.10854]
[1728076866596,0.12192008,2434.2,2433.9,4.10854]
[1728076866970,0.12186139,2434.1,2433.9,4.10854]
[1728076867298,4.90747,2434.3,2433.9,4.10854]
[1728076867468,0.12180268,2434.0,2433.9,4.10854]
[1728076867669,4.90747,2434.3,2433.9,5.23531086]
[1728076867892,0.12176012,2434.0,2433.9,4.10854]
[1728076868089,4.90747,2434.3,2433.9,4.10854]
[1728076868299,0.12189252,2434.0,2433.9,4.10854]
[1728076868469,4.90747,2434.3,2433.9,4.10854]
[1728076868670,0.12189252,2434.0,2433.9,4.10854]
[1728076868870,4.90747,2434.3,2433.9,4.10854]
[1728076869105,0.12189252,2434.0,2433.9,4.10854]
[1728076869304,4.90747,2434.3,2433.9,4.10854]
[1728076869983,0.12200864,2434.2,2433.9,4.10854]
[1728076870294,4.90747,2434.3,2433.9,4.10854]
[1728076870488,0.12195122,2434.1,2433.9,4.10854]
[1728076870700,4.90747,2434.3,2433.9,4.10854]
[1728076870890,0.12189125,2434.0,2433.9,4.10854]
[1728076871091,4.90747,2434.3,2433.9,4.10854]
[1728076871290,0.12189125,2434.0,2433.9,4.10854]
[1728076871501,4.90747,2434.3,2433.9,5.23531086]
[1728076871815,4.90747,2434.3,2433.9,4.10854]
[1728076871994,0.12200991,2434.2,2433.9,4.10854]
[1728076872190,4.90747,2434.3,2433.9,4.10854]
[1728076872393,0.12195122,2434.1,2433.9,4.10854]
[1728076872589,4.90747,2434.3,2433.9,4.10854]
[1728076872798,0.12125732,2434.0,2433.9,4.10854]
[1728076872963,4.90747,2434.3,2433.9,4.10854]
[1728076873169,0.12137471,2434.2,2433.9,4.10854]
[1728076873467,4.90747,2434.3,2433.9,4.10854]
[1728076873666,0.12131602,2434.1,2433.9,4.10854]
[1728076873891,4.90747,2434.3,2433.9,4.10854]
[1728076874101,0.12125732,2434.0,2433.9,4.10854]
[1728076874277,4.90747,2434.3,2433.9,4.10854]
[1728076874478,0.12125732,2434.0,2433.9,4.10854]
[1728076874677,4.90747,2434.3,2433.9,4.10854]
[1728076874907,0.12125732,2434.0,2433.9,4.10854]
[1728076875122,4.90747,2434.3,2433.9,4.10854]
[1728076875266,0.12125732,2434.0,2433.9,4.10854]
[1728076875471,4.90747,2434.3,2433.9,4.10854]
[1728076875681,0.12125732,2434.0,2433.9,4.10854]
[1728076875883,4.90747,2434.3,2433.9,4.10854]
[1728076876409,0.12138141,2434.2,2433.9,4.10854]
[1728076876711,4.90747,2434.3,2433.9,4.10854]
[1728076876918,0.12132272,2434.1,2433.9,4.10854]
[1728076877118,4.90747,2434.3,2433.9,4.10854]
[1728076877273,0.12126402,2434.0,2433.9,4.10854]
[1728076877474,4.90747,2434.3,2433.9,4.10854]
[1728076877713,0.12126402,2434.0,2433.9,4.10854]
[1728076878307,4.90747,2434.3,2433.9,5.24195499]
[1728076878515,0.12126402,2434.0,2433.9,5.24195499]
[1728076879006,4.90747,2434.3,2433.9,5.24195499]
[1728076879209,0.12126276,2434.0,2433.9,5.24195499]
[1728076879377,4.90747,2434.3,2433.9,5.24195499]
[1728076879576,0.12126276,2434.0,2433.9,5.24195499]
[1728076879775,4.90747,2434.3,2433.9,5.24195499]
[1728076880105,0.12126276,2434.0,2433.9,5.24195499]
[1728076880276,4.90747,2434.3,2433.9,5.80972269]
[1728076880608,4.90747,2434.3,2433.9,4.10854]
[1728076880910,0.12138141,2434.2,2433.9,4.10854]
[1728076881220,4.90747,2434.3,2433.9,4.10854]
[1728076881509,0.12132272,2434.1,2433.9,4.10854]
[1728076881717,4.90747,2434.3,2433.9,4.10854]
[1728076881931,0.12126402,2434.0,2433.9,4.10854]
[1728076882217,0.12126402,2434.0,2433.9,7.90382559]
[1728076882394,4.90747,2434.3,2433.9,7.33605133]
[1728076882597,0.12126402,2434.0,2433.9,4.10854]
[1728076882815,4.90747,2434.3,2433.9,4.10854]
[1728076882998,0.12126276,2434.0,2433.9,4.10854]
[1728076883197,4.90747,2434.3,2433.9,4.67630994]
[1728076883397,0.12126402,2434.0,2433.9,4.10854]
[1728076883598,4.90747,2434.3,2433.9,7.90381012]
[1728076883812,0.12126402,2434.0,2433.9,4.10854]
[1728076884126,4.90747,2434.3,2433.9,4.10854]
[1728076884286,0.12126402,2434.0,2433.9,4.10854]
[1728076884488,4.90747,2434.3,2433.9,4.10854]
[1728076884698,0.12126402,2434.0,2433.9,4.10854]
[1728076884886,4.90747,2434.3,2433.9,7.20730086]
[1728076885116,0.12126402,2434.0,2433.9,4.10854]
[1728076885596,4.90747,2434.3,2433.9,4.10854]
[1728076885800,0.12126846,2434.0,2433.9,4.10854]
[1728076886107,4.90747,2434.3,2433.9,4.10854]
[1728076886310,0.12126846,2434.0,2433.9,4.10854]
[1728076886492,4.90747,2434.3,2433.9,7.20730086]
[1728076886691,0.12126846,2434.0,2433.9,4.10854]
[1728076886893,4.90747,2434.3,2433.9,4.10854]
[1728076887100,0.12126846,2434.0,2433.9,4.10854]
[1728076887324,4.90747,2434.3,2433.9,4.10854]
[1728076887527,0.12126846,2434.0,2433.9,4.10854]
[1728076887684,4.90747,2434.3,2433.9,7.20730086]
[1728076887895,0.12126846,2434.0,2433.9,4.10854]
[1728076888085,4.90747,2434.3,2433.9,4.10854]
[1728076888293,0.12126846,2434.0,2433.9,4.10854]
[1728076888500,4.90747,2434.3,2433.9,4.10854]
[1728076888989,0.12138585,2434.2,2433.9,4.10854]
[1728076889194,4.90747,2434.3,2433.9,4.10854]
[1728076889400,0.12138585,2434.2,2433.9,4.10854]
[1728076889603,4.90747,2434.3,2433.9,4.10854]
[1728076889934,0.12132715,2434.1,2433.9,4.10854]
[1728076890241,0.12126846,2434.0,2433.9,4.10854]
[1728076890403,4.90747,2434.3,2433.9,4.10854]
[1728076890737,0.12126846,2434.0,2433.9,4.10854]
[1728076890922,4.90747,2434.3,2433.9,4.10854]
[1728076891530,0.12138585,2434.2,2433.9,4.10854]
[1728076891935,4.90747,2434.3,2433.9,4.10854]
[1728076892137,0.12132715,2434.1,2433.9,4.10854]
[1728076892340,4.90747,2434.3,2433.9,4.10854]
[1728076892832,0.12138585,2434.2,2433.9,4.10854]
[1728076893019,4.90747,2434.3,2433.9,4.10854]
[1728076893339,0.12132715,2434.1,2433.9,4.10854]
[1728076893540,4.90747,2434.3,2433.9,5.23530086]
[1728076893727,0.12126846,2434.0,2433.9,4.10854]
[1728076894248,4.90747,2434.3,2433.9,4.10854]
[1728076894401,0.12126846,2434.0,2433.9,4.10854]
[1728076894601,4.90747,2434.3,2433.9,4.10854]
[1728076894807,0.12126846,2434.0,2433.9,4.10854]
[1728076895124,4.90747,2434.3,2433.9,5.36405133]
[1728076895337,0.12126846,2434.0,2433.8,5.75590644]
[1728076895641,4.90747,2434.3,2433.9,4.10862]
[1728076903940,4.90747,2434.3,2433.9,8.21717]
[1728076904136,4.90747,2434.3,2433.9,4.10855]
[1728076908023,0.12131815,2434.2,2433.9,4.10855]
[1728076908354,4.90747,2434.3,2433.9,4.10855]
[1728076908538,0.12125946,2434.1,2433.9,4.10855]
[1728076908846,0.12120203,2434.0,2433.9,4.10855]
[1728076909038,4.90747,2434.3,2433.9,4.10855]
[1728076909347,0.12120076,2434.0,2433.9,4.10855]
[1728076909545,4.90747,2434.3,2433.9,4.10855]
[1728076909847,0.11996482,2434.2,2433.9,4.10855]
[1728076910461,4.90747,2434.3,2433.9,4.10855]
[1728076910649,9.01553,2434.3,2433.9,4.10855]
[1728076910836,0.11969322,2434.1,2433.9,4.10855]
[1728076911037,4.90747,2434.3,2433.9,4.10855]
[1728076911242,0.11962785,2434.0,2433.9,4.10855]
[1728076911428,0.11962785,2434.0,2433.9,7.06700364]
[1728076911629,4.90747,2434.3,2433.9,7.06700364]
[1728076911836,4.90747,2434.3,2433.9,4.10855]
[1728076912159,4.90747,2434.3,2433.8,5.75591644]
[1728076912458,0.11682358,2434.2,2433.8,5.75591644]
[1728076912623,4.90748,2434.3,2433.9,4.10862]
[1728076913029,0.11693804,2434.2,2433.9,4.10862]
[1728076913262,9.01557,2434.3,2433.8,5.75592644]
[1728076913570,0.11683356,2434.1,2433.8,8.84315455]
[1728076913738,0.11689226,2434.2,2433.8,8.84315455]
[1728076913935,4.90748,2434.3,2433.8,8.84315455]
[1728076914520,0.11689226,2434.2,2433.8,8.84315455]
[1728076914766,4.90748,2434.3,2433.8,8.84315455]
[1728076915142,0.11710643,2434.2,2433.8,8.84315455]
[1728076915323,0.11710643,2434.2,2433.8,7.98481811]
[1728076915519,4.90748,2434.3,2433.8,7.98481811]
[1728076915736,4.90748,2434.3,2433.8,8.84315455]
[1728076915936,0.11685508,2434.2,2433.8,8.84315455]
[1728076916158,0.11685508,2434.2,2433.8,7.98481811]
[1728076916458,4.90748,2434.3,2433.9,4.10861]
[1728076917273,0.11685508,2434.2,2433.9,4.10861]
[1728076917569,4.90748,2434.3,2433.9,4.10861]
[1728076917961,0.11685508,2434.2,2433.9,4.10861]
[1728076918346,4.90748,2434.3,2433.9,2.48035976]
[1728076918562,4.10781,2434.4,2434.0,0.761]
[1728076918763,0.11685508,2434.2,2434.0,0.761]
[1728076919072,4.10781,2434.4,2434.0,0.761]
[1728076919445,0.11690931,2434.3,2434.0,0.761]
[1728076919853,0.11685061,2434.2,2434.0,0.761]
[1728076920249,0.11685061,2434.2,2433.8,4.96704644]
[1728076920250,4.10813,2434.2,2433.8,5.72810644]
[1728076920478,4.10813,2434.2,2433.8,0.761]
[1728076920479,4.2251719,2434.1,2433.8,0.761]
[1728076922838,4.10838,2434.1,2433.8,0.761]
[1728076923089,0.11673319,2434.0,2433.8,0.761]
[1728076924074,4.10838,2434.1,2433.8,0.761]
[1728076924578,4.10813,2434.2,2433.8,0.761]
[1728076925076,0.1167919,2434.1,2433.8,0.761]
[1728076925285,8.21637,2434.2,2433.8,0.761]
[1728076925585,0.11673319,2434.0,2433.8,0.761]
[1728076925746,8.21637,2434.2,2433.8,0.761]
[1728076926083,0.11667447,2433.9,2433.8,0.761]
[1728076926248,8.21637,2434.2,2433.8,0.761]
[1728076926449,0.1167919,2434.1,2433.8,0.761]
[1728076931014,0.1167919,2434.1,2433.8,1.61933644]
[1728076931160,0.1167919,2434.1,2433.8,0.761]
[1728076931661,0.1167919,2434.1,2433.8,1.61933644]
[1728076931862,0.1167919,2434.1,2433.8,0.761]
[1728076932600,0.1167919,2434.1,2433.8,1.61933644]
[1728076932774,0.1167919,2434.1,2433.8,5.72812644]
[1728076932970,0.1167919,2434.1,2433.8,4.86979]
[1728076933189,0.1167919,2434.1,2433.8,5.72812644]
[1728076933398,0.1167919,2434.1,2433.8,4.86979]
[1728076947485,0.1167919,2434.1,2433.8,8.9785]
[1728076947689,0.1167919,2434.1,2433.8,4.86971]
[1728076949204,0.1167919,2434.1,2433.8,5.72804644]
[1728076949625,0.1167919,2434.1,2433.8,9.83676644]
[1728076949994,0.1167919,2434.1,2433.8,8.97843]
[1728076950194,0.1167919,2434.1,2433.8,9.83674644]
[1728076950634,0.1167919,2434.1,2433.8,8.97841]
[1728076951292,0.1167919,2434.1,2433.8,9.83674644]
[1728076954327,0.1167919,2434.1,2433.9,0.56862777]
[1728076954534,0.1167919,2434.1,2433.8,8.97841]
[1728076954835,0.1167919,2434.1,2433.8,4.8697]
[1728076956232,0.1167919,2434.1,2433.8,5.72803644]
[1728076957432,0.1167919,2434.1,2433.8,4.8697]
[1728076957732,0.1167919,2434.1,2433.8,5.72803644]
[1728076962421,0.1167919,2434.1,2433.8,4.8697]
[1728076965154,0.1167919,2434.1,2433.8,5.72803644]
[1728076965457,0.1167919,2434.1,2433.8,4.8697]
[1728076967630,0.1167919,2434.1,2433.8,5.72803644]
[1728076968021,0.1167919,2434.1,2433.8,4.8697]
[1728076968663,0.1167919,2434.1,2434.0,0.7811]
[1728076968967,0.64412291,2434.3,2434.0,4.88956]
[1728076969113,0.11463075,2434.2,2434.0,4.88956]
[1728076969318,0.64412291,2434.3,2434.0,4.88956]
[1728076969552,0.11463075,2434.2,2434.0,0.7811]
[1728076969851,0.64412291,2434.3,2434.0,0.7811]
[1728076970054,0.11457204,2434.1,2434.0,0.7811]
[1728076970253,0.64412291,2434.3,2434.0,0.7811]
[1728076970457,0.11457204,2434.1,2434.0,0.7811]
[1728076970759,0.11459493,2434.1,2434.0,0.7811]
[1728076970932,4.75209291,2434.3,2434.0,0.7811]
[1728076971259,0.11463075,2434.2,2434.0,0.7811]
[1728076971611,4.75209291,2434.3,2434.0,0.7811]
[1728076971819,0.11459493,2434.1,2434.0,0.7811]
[1728076972023,4.75209291,2434.3,2434.0,0.7811]
[1728076972221,0.11459493,2434.1,2434.0,0.7811]
[1728076972446,4.75209291,2434.3,2434.0,0.7811]
[1728076972661,0.11459493,2434.1,2434.0,0.7811]
[1728076973121,4.75209291,2434.3,2434.0,0.7811]
[1728076973316,0.11465364,2434.2,2434.0,0.7811]
[1728076973554,4.75209291,2434.3,2434.0,0.7811]
[1728076973759,0.11465364,2434.2,2434.0,0.7811]
[1728076973960,4.75209291,2434.3,2434.0,0.7811]
[1728076974159,0.11465364,2434.2,2434.0,0.7811]
[1728076974372,4.75209291,2434.3,2434.0,0.7811]
[1728076974661,0.11465364,2434.2,2434.0,0.7811]
[1728076975064,4.10812,2434.2,2434.0,0.7811]
[1728076975250,0.11459493,2434.1,2434.0,0.7811]
[1728076979383,8.21634,2434.2,2434.0,0.7811]
[1728076979694,0.11512389,2434.1,2434.0,0.7811]
[1728076986167,4.22341389,2434.1,2434.0,0.7811]
[1728076986696,4.22341389,2434.1,2433.8,3.0379286]
[1728076986930,4.22341389,2434.1,2433.8,2.17959216]
[1728076988415,4.22341389,2434.1,2433.7,4.96713644]
[1728076988416,0.8292,2434.0,2433.7,0.85833644]
[1728076988569,0.8292,2434.0,2433.6,21.00750466]
[1728076988570,4.1088,2433.8,2433.6,19.72]
[1728076988879,4.1088,2433.8,2433.5,1.63483644]
[1728076988880,4.1088,2433.8,2433.5,3.0379286]
[1728076989898,8.21734,2433.9,2433.5,3.0379286]
[1728076990223,4.22342985,2433.8,2433.5,3.0379286]
[1728076990399,4.10898,2433.7,2433.5,1.63483644]
[1728076990641,4.97934244,2433.6,2433.3,21.38183644]
[1728076990803,4.97934244,2433.6,2433.3,19.72]
[1728076990973,4.10938,2433.5,2433.3,19.72]
[1728076991167,0.1143518,2433.4,2433.2,0.85833644]
[1728076991374,4.10943,2433.5,2433.1,3.0649286]
[1728076991698,0.11436609,2433.4,2433.1,7.1748986]
[1728076992090,4.10943,2433.5,2433.1,7.1748986]
[1728076992519,4.10943,2433.5,2433.1,6.31656216]
[1728076993914,4.86484,2433.6,2433.1,6.31656216]
[1728076994729,4.86484,2433.6,2433.1,10.42646216]
[1728076994880,0.11442755,2433.5,2433.1,10.42646216]
[1728076995282,0.11442755,2433.5,2433.1,6.31649216]
[1728076995481,0.11442755,2433.5,2433.1,10.42638216]
[1728076998009,0.11442755,2433.5,2433.1,6.31648216]
[1728076998229,0.11442755,2433.5,2433.1,10.42636216]
[1728077000028,0.11442755,2433.5,2433.3,5.51262216]
[1728077000398,0.7557,2433.6,2433.3,5.51262216]
[1728077001819,0.11403819,2433.5,2433.3,5.51262216]
[1728077009428,0.11403819,2433.5,2433.3,1.40309216]
[1728077012530,0.11403819,2433.5,2433.1,13.44100838]
[1728077014250,0.11403819,2433.5,2433.1,9.33110838]
[1728077018251,0.11403819,2433.5,2433.2,0.56887876]
[1728077018460,0.11403819,2433.5,2433.1,9.33110838]
[1728077018661,0.11302418,2433.5,2433.2,1.50202729]
[1728077018880,0.11302418,2433.5,2433.2,0.93311084]
[1728077019080,4.22235418,2433.5,2433.1,3.81813622]
[1728077019390,4.10951,2433.4,2433.1,0.8035]
[1728077019592,0.11394493,2433.3,2433.1,0.8035]
[1728077020192,0.11394493,2433.3,2433.2,0.56951071]
[1728077021250,0.11394493,2433.3,2433.1,0.8035]
[1728077021585,4.10951,2433.4,2433.2,0.56957407]
[1728077021784,0.11390236,2433.3,2433.2,0.56957407]
[1728077022787,0.11390236,2433.3,2433.2,0.56953954]
[1728077022991,4.10951,2433.4,2433.2,0.56953954]
[1728077023214,4.10951,2433.4,2433.0,5.51321216]
[1728077023389,4.10951,2433.4,2433.0,8.52504038]
[1728077023595,4.87741,2433.4,2433.0,8.52504038]
[1728077023889,0.7679,2433.4,2433.0,8.52504038]
[1728077028668,0.7679,2433.4,2433.0,4.41492038]
[1728077028881,0.7679,2433.4,2433.1,4.10997]
[1728077032911,0.7679,2433.4,2433.1,8.21985]
[1728077033085,0.7679,2433.4,2433.2,1.34931068]
[1728077033280,0.11269342,2433.3,2433.1,4.10988]
[1728077034496,0.11269342,2433.3,2433.1,4.96821644]
[1728077037326,0.11269342,2433.3,2433.1,0.85833644]
[1728077038010,0.11269342,2433.3,2433.2,0.85833644]
[1728077038213,0.11269342,2433.3,2433.1,0.85833644]
[1728077040738,0.11269342,2433.3,2433.0,6.3714886]
[1728077041030,0.7679,2433.4,2433.0,9.76956421]
[1728077041330,0.11185489,2433.3,2433.0,9.76956421]
[1728077041730,0.7679,2433.4,2433.0,9.76956421]
[1728077042237,0.11181232,2433.3,2433.0,9.76956421]
[1728077042385,0.7679,2433.4,2433.0,9.76956421]
[1728077042590,0.11181232,2433.3,2433.0,9.76956421]
[1728077042908,0.7679,2433.4,2433.0,9.76956421]
[1728077043324,0.11182631,2433.3,2433.0,9.76956421]
[1728077043664,0.7679,2433.4,2433.0,9.76956421]
[1728077043821,0.7679,2433.4,2433.0,6.3714886]
[1728077044021,0.11111823,2433.3,2433.0,6.3714886]
[1728077044258,4.8774,2433.4,2433.0,6.3714886]
[1728077046365,0.11108964,2433.3,2433.0,6.3714886]
[1728077046865,0.7679,2433.4,2433.0,6.3714886]
[1728077047365,0.11111823,2433.3,2433.0,6.3714886]
[1728077047732,0.7679,2433.4,2433.0,6.3714886]
[1728077048127,0.11107566,2433.3,2433.0,5.51315216]
[1728077048533,0.7679,2433.4,2433.0,5.51315216]
[1728077048732,0.7679,2433.4,2433.0,6.3714886]
[1728077048945,0.7679,2433.4,2433.0,5.51315216]
[1728077049148,0.11107566,2433.3,2433.0,5.51315216]
[1728077049349,0.11107566,2433.3,2433.0,6.3714886]
[1728077049529,0.7679,2433.4,2433.0,6.3714886]
[1728077049974,0.11111823,2433.3,2433.0,6.3714886]
[1728077050273,0.7679,2433.4,2433.0,6.3714886]
[1728077050765,0.11111823,2433.3,2433.0,6.3714886]
[1728077051137,0.7679,2433.4,2433.0,5.51315216]
[1728077051326,0.7679,2433.4,2433.0,6.3714886]
[1728077051534,0.11107566,2433.3,2433.0,6.3714886]
[1728077051882,0.11107566,2433.3,2433.0,5.51315216]
[1728077052178,0.7679,2433.4,2433.0,5.51315216]
[1728077052479,0.11108964,2433.3,2433.0,5.51315216]
[1728077052933,0.7679,2433.4,2433.0,5.51315216]
[1728077053425,0.7679,2433.4,2432.9,5.74342644]
[1728077053426,4.98664823,2433.3,2432.9,0.85833644]
[1728077053630,4.98664823,2433.3,2432.8,2.2614286]
[1728077053631,0.7658,2433.1,2432.8,2.2614286]
[1728077053879,0.11090635,2433.0,2432.8,1.40309216]
[1728077054167,0.11090635,2433.0,2432.7,0.85833644]
[1728077054327,4.11015,2433.0,2432.7,0.85833644]
[1728077054562,4.11015,2433.0,2432.6,6.3721686]
[1728077054775,0.1107805,2432.9,2432.6,6.3721686]
[1728077054971,0.7658,2433.1,2432.7,0.85833644]
[1728077054972,4.8758,2433.1,2432.7,0.85833644]
[1728077055332,0.11083924,2433.0,2432.6,2.2614286]
[1728077055563,0.11083924,2433.0,2432.7,4.11065]
[1728077056281,0.11083924,2433.0,2432.7,4.96898644]
[1728077056438,0.11083924,2433.0,2432.7,4.11065]
[1728077057241,4.8758,2433.1,2432.7,4.11065]
[1728077059340,8.22007,2433.1,2432.6,5.51390216]
[1728077059677,0.7558,2433.0,2432.6,5.51390216]
[1728077059988,4.86595,2433.0,2432.6,5.51390216]
[1728077060154,0.7558,2433.0,2432.6,5.51390216]
[1728077060679,4.86604,2433.0,2432.6,1.40309216]
[1728077061277,0.11075393,2432.9,2432.6,5.51387216]
[1728077064340,0.11075393,2432.9,2432.6,9.62461216]
[1728077065641,0.11075393,2432.9,2432.6,5.51383216]
[1728077067892,0.11075393,2432.9,2432.6,9.62457216]
[1728077069097,0.11075393,2432.9,2432.6,5.51383216]
[1728077069452,0.11075393,2432.9,2432.6,4.11074]
[1728077069653,0.11075393,2432.9,2432.8,4.91608]
[1728077069880,1.4000839,2433.6,2433.2,4.10969]
[1728077070066,1.4000839,2433.6,2433.3,1.40309216]
[1728077070288,0.10718428,2433.5,2433.3,1.40309216]
[1728077074420,4.21650428,2433.5,2433.3,1.40309216]
[1728077074846,4.21650428,2433.5,2433.0,4.11001]
[1728077074847,4.21650428,2433.5,2433.1,1.40309216]
[1728077075031,0.8098,2433.3,2433.1,1.40309216]
[1728077075361,0.10705813,2433.2,2433.1,1.40309216]
[1728077075720,0.8098,2433.3,2433.1,1.40309216]
[1728077075921,0.10706793,2433.2,2433.1,1.40309216]
[1728077076357,0.8098,2433.3,2433.1,1.40309216]
[1728077076557,0.10709652,2433.2,2433.1,1.40309216]
[1728077076862,0.8098,2433.3,2433.1,1.40309216]
[1728077077047,0.10709652,2433.2,2433.1,1.40309216]
[1728077077248,0.8098,2433.3,2433.1,1.40309216]
[1728077077451,0.10703966,2433.2,2433.1,1.40309216]
[1728077077654,0.8098,2433.3,2433.1,1.40309216]
[1728077077962,0.10705364,2433.2,2433.1,1.40309216]
[1728077078343,0.8098,2433.3,2433.1,1.40309216]
[1728077078670,0.10706793,2433.2,2433.1,1.40309216]
[1728077078830,0.8098,2433.3,2433.1,1.40309216]
[1728077079163,0.10708223,2433.2,2433.1,1.40309216]
[1728077079663,0.10709652,2433.2,2433.1,1.40309216]
[1728077079872,0.8098,2433.3,2433.1,1.40309216]
[1728077080242,0.10710256,2433.2,2433.1,1.40309216]
[1728077080574,0.8098,2433.3,2433.1,1.40309216]
[1728077080726,0.10711654,2433.2,2433.1,1.40309216]
[1728077081261,0.8098,2433.3,2433.1,1.40309216]
[1728077081467,0.10711654,2433.2,2433.1,1.40309216]
[1728077081672,0.8098,2433.3,2433.1,1.40309216]
[1728077081829,0.10714513,2433.2,2433.1,1.40309216]
[1728077082030,0.8098,2433.3,2433.1,1.40309216]
[1728077082570,0.10714513,2433.2,2433.1,1.40309216]
[1728077083069,0.8098,2433.3,2433.1,1.40309216]
[1728077083567,0.10710256,2433.2,2433.1,1.40309216]
[1728077083970,0.8098,2433.3,2433.1,1.40309216]
[1728077084491,0.10717376,2433.2,2432.9,5.51332216]
[1728077084641,0.8098,2433.3,2432.9,5.51332216]
[1728077085047,0.10724811,2433.2,2432.9,5.51332216]
[1728077085475,0.8098,2433.3,2432.9,9.62355216]
[1728077085774,0.8098,2433.3,2432.9,5.51332216]
[1728077085939,0.10724668,2433.2,2432.9,5.51332216]
[1728077086134,0.8098,2433.3,2432.9,5.51332216]
[1728077086339,0.8098,2433.3,2432.9,9.62355216]
[1728077086579,0.10718982,2433.2,2432.9,9.62355216]
[1728077086751,0.8098,2433.3,2432.9,9.62355216]
[1728077086935,0.10714507,2433.1,2432.9,9.62355216]
[1728077087136,0.8098,2433.3,2432.9,9.62355216]
[1728077087439,0.106433,2433.0,2432.9,9.62355216]
[1728077087670,0.8098,2433.3,2433.0,4.11014]
[1728077088044,0.10656477,2433.2,2433.0,4.11014]
[1728077088239,0.8098,2433.3,2433.0,4.11014]
[1728077088635,0.10659335,2433.2,2433.0,4.11014]
[1728077088830,0.8098,2433.3,2433.0,4.11014]
[1728077089031,0.10659335,2433.2,2433.0,4.11014]
[1728077089337,0.8098,2433.3,2433.0,4.11014]
[1728077089857,0.8098,2433.3,2433.1,4.10995]
[1728077090034,0.10655047,2433.2,2433.1,4.10995]
[1728077090236,0.8098,2433.3,2433.1,4.10995]
[1728077090443,0.10656477,2433.2,2433.1,4.10995]
[1728077090671,0.8098,2433.3,2433.1,4.10995]
[1728077090976,0.1060381,2433.2,2433.1,4.10995]
[1728077091281,0.8098,2433.3,2433.1,4.10995]
[1728077091634,0.10606668,2433.2,2433.1,4.10995]
[1728077092054,0.8098,2433.3,2433.0,4.11014]
[1728077092452,0.10483335,2433.2,2433.0,4.11014]
[1728077092798,0.8098,2433.3,2433.1,1.40309216]
[1728077093099,0.1047447,2433.2,2433.1,1.40309216]
[1728077093399,0.8098,2433.3,2433.1,1.40309216]
[1728077093894,0.10477329,2433.2,2433.1,1.40309216]
[1728077094055,0.8098,2433.3,2433.1,1.40309216]
[1728077094392,0.10477329,2433.2,2433.1,1.40309216]
[1728077094790,0.8098,2433.3,2433.1,1.40309216]
[1728077094963,0.10478758,2433.2,2433.1,1.40309216]
[1728077095368,0.8098,2433.3,2433.1,1.40309216]
[1728077095769,0.10473072,2433.2,2433.1,1.40309216]
[1728077096163,0.8098,2433.3,2433.1,1.40309216]
[1728077096366,0.1047447,2433.2,2433.1,1.40309216]
[1728077096645,0.8098,2433.3,2433.1,1.40309216]
[1728077096861,0.10475899,2433.2,2433.1,1.40309216]
[1728077097064,0.8098,2433.3,2433.1,1.40309216]
[1728077097465,0.10477329,2433.2,2433.1,1.40309216]
[1728077097971,0.8098,2433.3,2433.1,1.40309216]
[1728077098493,0.10471725,2433.2,2433.1,1.40309216]
[1728077098664,0.8098,2433.3,2433.1,1.40309216]
[1728077099053,0.10471725,2433.2,2433.1,1.40309216]
[1728077099487,0.8098,2433.3,2433.1,1.40309216]
[1728077099698,0.10475982,2433.2,2433.1,1.40309216]
[1728077099902,0.8098,2433.3,2433.1,1.40309216]
[1728077100264,0.10475982,2433.2,2433.1,5.51307216]
[1728077100464,0.10475982,2433.2,2433.1,6.94294938]
[1728077100858,4.10925,2433.6,2433.1,6.25197746]
[1728077101084,4.8606,2433.7,2433.2,1.40309216]
[1728077101085,0.7515,2433.7,2433.2,1.40309216]
[1728077101287,0.10477624,2433.6,2433.2,1.40309216]
[1728077101490,4.21398624,2433.6,2433.2,1.40309216]
[1728077101879,4.21398624,2433.6,2433.2,5.51289216]
[1728077102078,0.10477624,2433.6,2433.2,5.51289216]
[1728077103767,0.7515,2433.5,2433.2,1.40309216]
[1728077104101,4.96563795,2433.5,2433.0,5.51321216]
[1728077104277,9.07504795,2433.5,2433.0,8.61325902]
[1728077104881,9.07502795,2433.5,2433.0,8.61325902]
[1728077105874,4.96563795,2433.5,2433.0,8.61325902]